bitfinex/quotes_BTCUSD_20220212
["timestamp","ask_amount","ask_price","bid_price","bid_amount"]
[1644671970879,0.22903298,42365.0,42363.0,0.27636331]
[1644671971281,0.35138092,42365.0,42363.0,0.27636331]
[1644671971683,0.45138092,42365.0,42363.0,0.27636331]
[1644671976800,0.45138092,42365.0,42363.0,0.27629343]
[1644671977700,0.30112103,42364.0,42363.0,0.27629343]
[1644671977899,0.40112103,42364.0,42363.0,0.27629343]
[1644671978299,0.1473,42364.0,42363.0,0.27629343]
[1644671979200,0.0473,42364.0,42363.0,0.27629343]
[1644671995830,0.00025989,42365.0,42363.0,0.27629343]
[1644671996034,0.00025989,42366.0,42363.0,0.27629343]
[1644671996230,0.00025989,42365.0,42363.0,0.27629343]
[1644671996432,0.00075319,42366.0,42363.0,0.27629343]
[1644671996632,0.00025989,42365.0,42363.0,0.27629343]
[1644671997036,0.00025989,42365.0,42363.0,0.27621872]
[1644671997338,0.00025989,42366.0,42363.0,0.27621872]
[1644671997532,0.00025989,42365.0,42363.0,0.27621872]
[1644671997734,0.62790286,42367.0,42363.0,0.27621872]
[1644671998034,0.0002601,42366.0,42363.0,0.27621872]
[1644671998337,0.27685509,42367.0,42363.0,0.27621872]
[1644671998579,0.0002601,42366.0,42363.0,0.27621872]
[1644671998780,0.87875507,42367.0,42363.0,0.27621872]
[1644671998982,0.0002601,42366.0,42363.0,0.27621872]
[1644671999180,0.62816296,42367.0,42363.0,0.27621872]
[1644671999381,0.0002601,42366.0,42363.0,0.27621872]
[1644671999582,0.62816296,42367.0,42363.0,0.27621872]
[1644671999783,0.0002601,42366.0,42363.0,0.27621872]
[1644671999980,0.62816296,42367.0,42363.0,0.27621872]
[1644672000184,0.0002601,42366.0,42363.0,0.27621872]
[1644672000383,0.13574205,42367.0,42363.0,0.27621872]
[1644672000592,0.0002601,42366.0,42363.0,0.27621872]
[1644672000785,0.0512601,42367.0,42363.0,0.27621872]
[1644672000987,0.0002601,42366.0,42363.0,0.27621872]
[1644672001183,0.0012601,42367.0,42363.0,0.27621872]
[1644672001786,0.0828047,42367.0,42363.0,0.27621872]
[1644672005983,0.0012601,42367.0,42363.0,0.27621872]
[1644672007384,0.06992059,42367.0,42363.0,0.27621872]
[1644672008085,0.0012601,42367.0,42363.0,0.27621872]
[1644672008986,0.0011827,42367.0,42363.0,0.27621872]
[1644672009587,0.07851307,42366.0,42363.0,0.27621872]
[1644672009831,0.12877317,42366.0,42363.0,0.27621872]
[1644672012230,0.20670078,42365.0,42363.0,0.27621872]
[1644672012431,0.22851307,42366.0,42365.0,0.32898789]
[1644672013032,0.05,42366.0,42365.0,0.32898789]
[1644672013232,0.0009226,42367.0,42365.0,0.32898789]
[1644672018935,0.35223047,42367.0,42365.0,0.32898789]
[1644672019135,0.0009226,42367.0,42365.0,0.32898789]
[1644672019334,0.43195537,42367.0,42365.0,0.32898789]
[1644672019533,0.27578607,42366.0,42365.0,0.32898789]
[1644672019733,0.37578607,42366.0,42365.0,0.32898789]
[1644672019934,0.47578607,42366.0,42365.0,0.32898789]
[1644672021586,0.47578607,42366.0,42365.0,0.32877884]
[1644672021783,0.42578607,42366.0,42365.0,0.32877884]
[1644672022182,0.47578607,42366.0,42365.0,0.32877884]
[1644672024091,0.52308607,42366.0,42365.0,0.32877884]
[1644672028677,0.2473,42366.0,42365.0,0.32877884]
[1644672028879,0.1473,42366.0,42365.0,0.32877884]
[1644672029182,0.1,42366.0,42365.0,0.32877884]
[1644672029381,0.05,42366.0,42365.0,0.32877884]
[1644672029578,0.00118269,42367.0,42365.0,0.32877884]
[1644672030981,0.00118269,42367.0,42365.0,0.52868175]
[1644672031479,0.00118269,42367.0,42365.0,0.32877884]
[1644672032331,0.08843823,42366.0,42365.0,0.32877884]
[1644672032729,0.13843823,42366.0,42365.0,0.32877884]
[1644672033430,0.39536852,42366.0,42365.0,0.32877884]
[1644672033830,0.49536852,42366.0,42365.0,0.32877884]
[1644672034236,0.23843823,42366.0,42365.0,0.32877884]
[1644672034831,0.13834221,42366.0,42365.0,0.32877884]
[1644672037382,0.38863771,42366.0,42365.0,0.32877884]
[1644672037782,0.53863771,42366.0,42365.0,0.32877884]
[1644672040635,0.28834221,42366.0,42365.0,0.32877884]
[1644672040836,0.18834221,42366.0,42365.0,0.32877884]
[1644672041638,0.44849469,42366.0,42365.0,0.32877884]
[1644672041840,0.59579469,42366.0,42365.0,0.32877884]
[1644672044885,0.75,42365.0,42360.0,0.00045794]
[1644672045086,0.45789284,42364.0,42360.0,0.00045794]
[1644672045286,0.25042352,42361.0,42360.0,0.00045794]
[1644672045485,0.34772352,42361.0,42357.0,0.0001]
[1644672045687,0.25464918,42360.0,42353.0,0.0001]
[1644672045884,0.07220212,42359.0,42353.0,0.0001]
[1644672046283,2.43441406,42358.0,42353.0,0.0001]
[1644672046488,2.43441406,42358.0,42351.0,0.00030338]
[1644672046784,0.2574411,42351.0,42349.0,0.00030338]
[1644672046986,2.81100029,42358.0,42357.0,0.13990895]
[1644672047236,2.81100029,42358.0,42357.0,0.14000895]
[1644672048130,2.86100029,42358.0,42357.0,0.14000895]
[1644672048930,0.75,42357.0,42350.0,0.00020338]
[1644672049132,0.75,42357.0,42349.0,0.1249]
[1644672049133,0.05,42356.0,42355.0,0.00045795]
[1644672049335,0.848597,42356.0,42355.0,0.00045795]
[1644672049636,0.848597,42356.0,42341.0,0.382]
[1644672049637,0.333179,42354.0,42349.0,0.00020338]
[1644672049836,0.333179,42352.0,42344.0,0.00020338]
[1644672050031,0.58446514,42346.0,42344.0,0.00020338]
[1644672050231,0.58446514,42346.0,42339.0,0.58433542]
[1644672050232,0.0473,42345.0,42339.0,0.58433542]
[1644672050433,0.0473,42345.0,42339.0,0.5845388]
[1644672050637,0.0473,42345.0,42339.0,0.0845388]
[1644672051083,0.0473,42345.0,42339.0,0.00020338]
[1644672051282,0.05,42344.0,42338.0,0.00106138]
[1644672051484,0.0473,42343.0,42338.0,0.000858]
[1644672051884,0.0973,42343.0,42338.0,0.000858]
[1644672052082,0.0473,42343.0,42338.0,0.000858]
[1644672052284,0.0973,42343.0,42338.0,0.000858]
[1644672052982,0.0973,42343.0,42340.0,0.06917121]
[1644672054184,0.0973,42343.0,42341.0,0.0001]
[1644672054393,0.0973,42343.0,42341.0,0.00030338]
[1644672054584,0.0973,42343.0,42340.0,0.06447459]
[1644672055233,0.0973,42343.0,42340.0,0.06427121]
[1644672055432,0.0973,42343.0,42340.0,0.06447459]
[1644672056336,0.0973,42343.0,42340.0,0.06427121]
[1644672056535,0.0973,42343.0,42340.0,0.06447459]
[1644672057540,0.1142,42351.0,42340.0,0.06427121]
[1644672057737,0.0473,42350.0,42341.0,0.29605263]
[1644672057936,0.0473,42350.0,42341.0,0.00020338]
[1644672058138,0.0473,42350.0,42346.0,0.2255469]
[1644672058337,0.0473,42350.0,42347.0,0.07672371]
[1644672058789,0.0473,42350.0,42347.0,0.07692709]
[1644672060092,0.0473,42350.0,42347.0,0.07672371]
[1644672060290,0.0473,42350.0,42347.0,0.07692709]
[1644672061391,0.0473,42350.0,42347.0,0.07672371]
[1644672061590,0.0473,42350.0,42347.0,0.07692709]
[1644672062241,0.25242448,42349.0,42347.0,0.00020338]
[1644672062534,0.05,42352.0,42346.0,0.00069548]
[1644672062535,0.25243037,42348.0,42346.0,0.00069548]
[1644672062736,0.05,42348.0,42346.0,0.0004921]
[1644672062934,0.2732429,42347.0,42346.0,0.0004921]
[1644672063234,0.3732429,42347.0,42346.0,0.0004921]
[1644672063435,0.3732429,42347.0,42340.0,0.00030338]
[1644672063634,0.3732429,42347.0,42344.0,0.00049212]
[1644672063635,0.55025062,42347.0,42344.0,0.00049212]
[1644672064435,0.059067,42346.0,42344.0,0.00049212]
[1644672064633,0.059067,42346.0,42340.0,0.00030338]
[1644672064835,0.059067,42346.0,42343.0,0.00049212]
[1644672065734,0.059067,42346.0,42341.0,0.00020338]
[1644672065980,0.059067,42346.0,42342.0,0.00049213]
[1644672066982,0.059067,42346.0,42340.0,0.00030338]
[1644672067182,0.059067,42346.0,42342.0,0.00049213]
[1644672067982,0.059067,42346.0,42342.0,0.00069551]
[1644672068183,0.059067,42346.0,42341.0,0.00020338]
[1644672068382,0.059067,42346.0,42342.0,0.00049213]
[1644672069384,0.059067,42346.0,42339.0,0.00020338]
[1644672069589,0.059067,42346.0,42338.0,0.000858]
[1644672069829,0.059067,42346.0,42338.0,0.00106138]
[1644672070029,0.059067,42346.0,42339.0,0.24692777]
[1644672070231,0.059067,42346.0,42340.0,0.0001]
[1644672070435,0.059067,42346.0,42340.0,0.00030338]
[1644672070647,0.059067,42346.0,42340.0,0.0001]
[1644672071232,0.059067,42346.0,42340.0,0.00030338]
[1644672071432,0.059067,42346.0,42340.0,0.0001]
[1644672071633,0.059067,42346.0,42340.0,0.00030338]
[1644672073235,0.059067,42346.0,42341.0,0.00048968]
[1644672073483,0.059067,42346.0,42341.0,0.00069306]
[1644672073684,0.059067,42346.0,42341.0,0.00048968]
[1644672073884,0.059067,42346.0,42341.0,0.00069306]
[1644672074083,0.059067,42346.0,42341.0,0.00048968]
[1644672074283,0.059067,42346.0,42341.0,0.00020338]
[1644672074484,0.059067,42346.0,42341.0,0.00048968]
[1644672074684,0.059067,42346.0,42341.0,0.00069306]
[1644672074887,0.059067,42346.0,42341.0,0.00048968]
[1644672075085,0.059067,42346.0,42341.0,0.00069306]
[1644672075386,0.059067,42346.0,42340.0,0.00030338]
[1644672075592,0.059067,42346.0,42341.0,0.00048968]
[1644672075986,0.059067,42346.0,42341.0,0.00069306]
[1644672076186,0.059067,42346.0,42341.0,0.00048968]
[1644672076387,0.059067,42346.0,42341.0,0.00069306]
[1644672076590,0.059067,42346.0,42340.0,0.00030338]
[1644672076790,0.059067,42346.0,42341.0,0.00048968]
[1644672076989,0.1,42349.0,42348.0,0.29750286]
[1644672077232,0.36019417,42349.0,42348.0,0.29750286]
[1644672078032,0.36019417,42349.0,42348.0,0.29760286]
[1644672078234,0.46019417,42349.0,42348.0,0.29760286]
[1644672080033,0.2,42349.0,42348.0,0.29760286]
[1644672081087,0.15,42349.0,42348.0,0.53209462]
[1644672081289,2.86963106,42358.0,42348.0,0.532298]
[1644672081290,2.64139993,42358.0,42348.0,0.532298]
[1644672081488,0.75698587,42358.0,42348.0,0.532298]
[1644672081688,0.25524,42357.0,42348.0,0.532298]
[1644672082487,0.059053,42356.0,42348.0,0.532298]
[1644672082986,0.059053,42356.0,42350.0,0.00048963]
[1644672082987,0.109053,42356.0,42350.0,0.00048963]
[1644672083787,0.15,42355.0,42349.0,0.00020338]
[1644672083988,0.15,42355.0,42348.0,0.532298]
[1644672084188,0.15,42355.0,42351.0,0.00048963]
[1644672084589,0.2513582,42354.0,42351.0,0.00048963]
[1644672085132,0.2513582,42354.0,42349.0,0.00020338]
[1644672085333,0.2513582,42354.0,42350.0,0.00048963]
[1644672085732,0.15,42355.0,42350.0,0.00048963]
[1644672086331,0.15,42355.0,42349.0,0.00020338]
[1644672086532,0.15,42355.0,42348.0,0.532298]
[1644672087133,0.26077759,42354.0,42348.0,0.29780624]
[1644672087333,0.26077759,42354.0,42348.0,0.29750286]
[1644672087534,0.31077759,42354.0,42348.0,0.29750286]
[1644672088135,0.35807759,42354.0,42348.0,0.29750286]
[1644672088503,0.5533417,42354.0,42348.0,0.29760286]
[1644672088701,0.5533417,42354.0,42348.0,0.29750286]
[1644672088901,0.5533417,42354.0,42349.0,0.00048969]
[1644672089102,0.0874871,42353.0,42349.0,0.00069307]
[1644672089302,0.059067,42352.0,42349.0,0.00069307]
[1644672089501,0.26976759,42351.0,42349.0,0.00069307]
[1644672089704,0.31976759,42351.0,42349.0,0.00069307]
[1644672089904,0.25181651,42350.0,42349.0,0.00020338]
[1644672090204,0.30181651,42350.0,42348.0,0.29799255]
[1644672090404,0.05,42350.0,42348.0,0.29799255]
[1644672090607,0.05,42350.0,42348.0,0.29809255]
[1644672090804,0.05,42351.0,42348.0,0.29799255]
[1644672091007,0.04973209,42351.0,42348.0,0.29760286]
[1644672091204,0.30207297,42350.0,42348.0,0.29750286]
[1644672091406,0.30207297,42350.0,42348.0,0.29780624]
[1644672091806,0.25150539,42349.0,42348.0,0.29780624]
[1644672092006,0.30150539,42349.0,42348.0,0.29780624]
[1644672092243,0.35150539,42349.0,42348.0,0.29780624]
[1644672092437,0.05,42349.0,42348.0,0.29760286]
[1644672092839,0.40143322,42351.0,42348.0,0.29760286]
[1644672093036,0.40143322,42351.0,42349.0,0.0001]
[1644672093037,0.1,42351.0,42349.0,0.0001]
[1644672093238,0.05,42351.0,42349.0,0.00030338]
[1644672093437,0.05,42351.0,42349.0,0.0001]
[1644672093642,0.059067,42352.0,42349.0,0.00030338]
[1644672093842,0.30143322,42356.0,42349.0,0.0001]
[1644672094040,0.30143322,42356.0,42349.0,0.00030338]
[1644672094240,0.30143322,42357.0,42349.0,0.0001]
[1644672094438,0.30143322,42358.0,42349.0,0.00030338]
[1644672094639,0.30143322,42358.0,42349.0,0.0001]
[1644672094840,0.55217006,42358.0,42351.0,0.00048968]
[1644672095339,0.60217006,42358.0,42351.0,0.00048968]
[1644672095994,0.60217006,42358.0,42349.0,0.00030338]
[1644672095995,0.30143322,42357.0,42349.0,0.00030338]
[1644672096201,0.333179,42351.0,42349.0,0.00030338]
[1644672096395,0.27838983,42350.0,42349.0,0.00030338]
[1644672096597,0.32838983,42350.0,42349.0,0.00030338]
[1644672099501,0.62982305,42350.0,42349.0,0.00030338]
[1644672100141,0.32838983,42350.0,42349.0,0.00030338]
[1644672103486,0.32338983,42350.0,42349.0,0.00030338]
[1644672107535,0.26532121,42350.0,42349.0,0.00030338]
[1644672107737,0.045,42350.0,42349.0,0.00030338]
[1644672107935,0.045,42350.0,42349.0,0.0001]
[1644672108939,0.29614896,42350.0,42349.0,0.0001]
[1644672111086,0.34344896,42350.0,42349.0,0.0001]
[1644672116943,0.39344896,42350.0,42349.0,0.0001]
[1644672117141,0.51159996,42350.0,42349.0,0.0001]
[1644672119700,0.66402228,42350.0,42349.0,0.0001]
[1644672121104,0.66349228,42350.0,42349.0,0.0001]
[1644672121503,0.7524,42349.0,42348.0,0.29770624]
[1644672121706,1.09974419,42349.0,42348.0,0.29750286]
[1644672123442,0.34957994,42349.0,42348.0,0.29750286]
[1644672125343,0.34238184,42349.0,42348.0,0.29750286]
[1644672126685,0.34238184,42349.0,42348.0,0.29760286]
[1644672129589,0.44238184,42349.0,42348.0,0.29760286]
[1644672140440,0.79404218,42349.0,42348.0,0.29760286]
[1644672140639,0.44238184,42349.0,42348.0,0.29760286]
[1644672141487,0.79404218,42349.0,42348.0,0.29760286]
[1644672142789,0.44238184,42349.0,42348.0,0.29760286]
[1644672147738,0.1473,42349.0,42348.0,0.29760286]
[1644672147937,0.40150983,42349.0,42348.0,0.29760286]
[1644672148138,0.30150983,42349.0,42348.0,0.29760286]
[1644672148589,0.045,42350.0,42348.0,0.29760286]
[1644672148590,0.34650983,42350.0,42348.0,0.29760286]
[1644672148790,0.34650983,42350.0,42349.0,0.0001]
[1644672149393,0.045,42350.0,42349.0,0.0001]
[1644672149692,0.145,42350.0,42349.0,0.0001]
[1644672149891,1.098e-05,42349.0,42348.0,0.29750286]
[1644672155241,1.098e-05,42349.0,42348.0,0.29760286]
[1644672171993,1.098e-05,42349.0,42348.0,0.29751639]
[1644672172591,0.08420429,42349.0,42348.0,0.29751639]
[1644672172791,0.13420429,42349.0,42348.0,0.29751639]
[1644672175638,0.05001098,42349.0,42348.0,0.29751639]
[1644672175840,1.098e-05,42349.0,42348.0,0.29751639]
[1644672189292,1.098e-05,42349.0,42348.0,0.29000062]
[1644672189496,0.03495672,42349.0,42348.0,0.29000062]
[1644672189753,0.03495672,42349.0,42348.0,0.48235114]
[1644672189946,0.03495672,42349.0,42348.0,0.47858315]
[1644672190345,1.098e-05,42349.0,42348.0,0.47858315]
[1644672191045,1.098e-05,42349.0,42348.0,0.28623263]
[1644672199241,1.098e-05,42349.0,42348.0,0.0001]
[1644672199443,1.098e-05,42349.0,42346.0,0.00059194]
[1644672199641,1.098e-05,42349.0,42346.0,0.00049194]
[1644672200445,1.098e-05,42349.0,42345.0,0.0001]
[1644672200651,1.098e-05,42349.0,42345.0,0.00059194]
[1644672200848,0.20084542,42350.0,42345.0,0.00059194]
[1644672201491,0.79065261,42351.0,42345.0,0.0001]
[1644672201691,0.25113924,42350.0,42345.0,0.00059194]
[1644672201892,0.53951337,42351.0,42345.0,0.00059194]
[1644672201893,0.25113924,42347.0,42345.0,0.00059194]
[1644672202092,0.55003131,42346.0,42345.0,0.00059194]
[1644672202292,0.34889207,42346.0,42345.0,0.00059194]
[1644672202490,0.64733131,42346.0,42345.0,0.00059194]
[1644672202690,0.64733131,42346.0,42345.0,0.0001]
[1644672203691,0.39619207,42346.0,42345.0,0.0001]
[1644672206448,0.49619207,42346.0,42345.0,0.0001]
[1644672208692,0.34619207,42346.0,42345.0,0.0001]
[1644672208892,0.49619207,42346.0,42345.0,0.0001]
[1644672212441,0.1973,42346.0,42345.0,0.0001]
[1644672212849,0.51907864,42349.0,42347.0,0.48884649]
[1644672213039,0.0473,42348.0,42347.0,0.48884649]
[1644672213241,0.25103924,42350.0,42347.0,0.48884649]
[1644672214441,0.55521488,42350.0,42347.0,0.48884649]
[1644672214840,0.30103924,42350.0,42347.0,0.48884649]
[1644672215040,0.40103924,42350.0,42347.0,0.48884649]
[1644672215642,0.65131834,42350.0,42347.0,0.48884649]
[1644672216102,0.4002791,42350.0,42347.0,0.48884649]
[1644672216304,0.70178893,42350.0,42347.0,0.48884649]
[1644672216501,0.15,42350.0,42347.0,0.48884649]
[1644672216904,0.05,42350.0,42347.0,0.48884649]
[1644672217106,0.25280016,42349.0,42347.0,0.48884649]
[1644672218205,0.25280016,42349.0,42348.0,0.0001]
[1644672218811,0.15,42350.0,42348.0,0.0001]
[1644672219007,0.3061857,42350.0,42348.0,0.0001]
[1644672219308,0.25108695,42349.0,42348.0,0.0001]
[1644672219748,0.15,42350.0,42348.0,0.0001]
[1644672220449,0.25093383,42349.0,42348.0,0.0001]
[1644672220847,0.24093383,42349.0,42348.0,0.0001]
[1644672222250,0.28823383,42349.0,42348.0,0.0001]
[1644672223896,0.28811694,42349.0,42348.0,0.0001]
[1644672226903,0.53927491,42349.0,42348.0,0.0001]
[1644672227102,0.0473,42349.0,42348.0,0.0001]
[1644672227343,0.1473,42349.0,42348.0,0.0001]
[1644672227543,0.65464844,42349.0,42348.0,0.0001]
[1644672231301,0.40349047,42349.0,42348.0,0.0001]
[1644672231499,0.65464844,42349.0,42348.0,0.0001]
[1644672231899,0.40349047,42349.0,42348.0,0.0001]
[1644672232501,0.73666947,42349.0,42348.0,0.0001]
[1644672232702,0.78666947,42349.0,42348.0,0.0001]
[1644672232900,0.92592741,42349.0,42348.0,0.0001]
[1644672233299,1.07930958,42349.0,42348.0,0.0001]
[1644672234750,1.29167307,42349.0,42348.0,0.0001]
[1644672235444,1.32681362,42349.0,42348.0,0.0001]
[1644672236447,1.083179,42348.0,42347.0,0.48884649]
[1644672236647,1.48591713,42348.0,42347.0,0.48648188]
[1644672236847,1.7392993,42348.0,42347.0,0.48648188]
[1644672237547,1.8574543,42348.0,42347.0,0.48648188]
[1644672238150,2.20907573,42348.0,42347.0,0.48648188]
[1644672239298,1.083179,42347.0,42335.0,0.5588]
[1644672239498,0.106381,42346.0,42345.0,0.00021011]
[1644672239698,0.48928842,42346.0,42336.0,0.00021011]
[1644672239901,0.059081,42342.0,42336.0,0.00021011]
[1644672240098,0.3129164,42341.0,42336.0,0.00021011]
[1644672240299,0.24361259,42340.0,42334.0,0.00021011]
[1644672240699,0.24361259,42340.0,42333.0,0.00021011]
[1644672240898,0.24361259,42340.0,42332.0,0.00021011]
[1644672241500,0.24361259,42340.0,42337.0,0.00022694]
[1644672241700,0.24361259,42340.0,42338.0,0.00106811]
[1644672242746,0.30175611,42339.0,42338.0,0.000858]
[1644672242944,0.0091187,42340.0,42338.0,0.00106811]
[1644672243143,0.1,42339.0,42338.0,0.00106811]
[1644672243342,0.50545927,42341.0,42338.0,0.00106811]
[1644672243945,0.50545927,42341.0,42338.0,0.000858]
[1644672244145,0.50545927,42341.0,42338.0,0.00106811]
[1644672245047,0.50545927,42341.0,42338.0,0.000858]
[1644672245248,0.50545927,42341.0,42338.0,0.00106811]
[1644672246200,0.50545927,42341.0,42338.0,0.000858]
[1644672246402,0.50545927,42341.0,42338.0,0.00106811]
[1644672247004,0.75663187,42341.0,42338.0,0.00106811]
[1644672247407,0.50545927,42341.0,42338.0,0.000858]
[1644672247606,0.50545927,42341.0,42338.0,0.00106811]
[1644672248405,0.256381,42341.0,42338.0,0.00106811]
[1644672248605,0.156381,42341.0,42338.0,0.000858]
[1644672248805,0.156381,42341.0,42338.0,0.00106811]
[1644672248806,0.106381,42341.0,42338.0,0.00106811]
[1644672249005,0.059081,42341.0,42338.0,0.00106811]
[1644672249406,0.059081,42341.0,42339.0,0.26527151]
[1644672249606,0.059081,42341.0,42339.0,0.26548162]
[1644672252247,0.059169,42345.0,42339.0,0.26548162]
[1644672252448,0.059169,42345.0,42340.0,0.28455441]
[1644672252648,0.059169,42345.0,42340.0,0.00021011]
[1644672252860,0.109169,42345.0,42339.0,0.26548162]
[1644672253048,0.059169,42345.0,42339.0,0.26548162]
[1644672253498,0.059169,42345.0,42340.0,0.00049197]
[1644672253700,0.059169,42345.0,42340.0,0.00070208]
[1644672254503,0.059069,42345.0,42340.0,0.00021011]
[1644672254701,0.059169,42345.0,42340.0,0.00049197]
[1644672254902,0.059069,42345.0,42340.0,0.00070208]
[1644672255104,0.059169,42345.0,42340.0,0.00070208]
[1644672255406,0.059069,42345.0,42340.0,0.00070208]
[1644672255604,0.059069,42345.0,42340.0,0.00021011]
[1644672255605,0.059169,42345.0,42340.0,0.00021011]
[1644672255805,0.059069,42345.0,42340.0,0.00070208]
[1644672256004,0.059169,42345.0,42340.0,0.00070208]
[1644672256207,0.059069,42345.0,42340.0,0.00070208]
[1644672256407,0.059169,42345.0,42340.0,0.00070208]
[1644672256606,0.059069,42345.0,42340.0,0.00070208]
[1644672256806,0.059169,42345.0,42340.0,0.00021011]
[1644672257005,0.25998337,42345.0,42340.0,0.00049197]
[1644672257246,0.31008337,42345.0,42340.0,0.00070208]
[1644672257451,0.30998337,42345.0,42340.0,0.00070208]
[1644672257648,0.40998337,42345.0,42340.0,0.00070208]
[1644672257849,0.41008337,42345.0,42340.0,0.00070208]
[1644672258051,0.40998337,42345.0,42340.0,0.00021011]
[1644672258250,0.40998337,42345.0,42340.0,0.00049197]
[1644672258449,0.41008337,42345.0,42340.0,0.00070208]
[1644672258649,0.40998337,42345.0,42340.0,0.00070208]
[1644672258848,0.41008337,42345.0,42340.0,0.00070208]
[1644672259049,0.40998337,42345.0,42340.0,0.00070208]
[1644672259248,0.41008337,42345.0,42340.0,0.00021011]
[1644672259450,0.40998337,42345.0,42340.0,0.00049197]
[1644672259647,0.41008337,42345.0,42340.0,0.00070208]
[1644672259848,0.40998337,42345.0,42340.0,0.00070208]
[1644672260049,0.41008337,42345.0,42340.0,0.00070208]
[1644672260350,0.40998337,42345.0,42340.0,0.00070208]
[1644672260547,0.41008337,42345.0,42340.0,0.00021011]
[1644672260751,0.40998337,42345.0,42340.0,0.00049197]
[1644672261004,0.41008337,42345.0,42340.0,0.00070208]
[1644672261202,0.40998337,42345.0,42340.0,0.00070208]
[1644672261402,0.41008337,42345.0,42340.0,0.00070208]
[1644672261702,0.40998337,42345.0,42340.0,0.00021011]
[1644672261904,0.40998337,42345.0,42340.0,0.00049197]
[1644672261905,0.41008337,42345.0,42340.0,0.00049197]
[1644672262103,0.40998337,42345.0,42340.0,0.00070208]
[1644672262303,0.41008337,42345.0,42340.0,0.00070208]
[1644672262505,0.40998337,42345.0,42340.0,0.00070208]
[1644672262703,0.41008337,42345.0,42340.0,0.00070208]
[1644672262902,0.40998337,42345.0,42340.0,0.00021011]
[1644672263104,0.41008337,42345.0,42340.0,0.00049197]
[1644672263307,0.40998337,42345.0,42340.0,0.00070208]
[1644672263505,0.41008337,42345.0,42340.0,0.00070208]
[1644672263704,0.40998337,42345.0,42340.0,0.00070208]
[1644672263905,0.41008337,42345.0,42340.0,0.00070208]
[1644672264105,0.40998337,42345.0,42340.0,0.00021011]
[1644672264305,0.41008337,42345.0,42340.0,0.00049197]
[1644672264505,0.40998337,42345.0,42340.0,0.00070208]
[1644672264745,0.41008337,42345.0,42340.0,0.00070208]
[1644672264946,0.40998337,42345.0,42340.0,0.00070208]
[1644672265146,0.41008337,42345.0,42340.0,0.00070208]
[1644672265349,0.40998337,42345.0,42340.0,0.00021011]
[1644672265547,0.26008337,42345.0,42340.0,0.00049197]
[1644672265848,0.20091437,42345.0,42340.0,0.28279459]
[1644672266046,0.20101437,42345.0,42340.0,0.28369794]
[1644672266246,0.20091437,42345.0,42340.0,0.00070208]
[1644672266445,0.20101437,42345.0,42340.0,0.00021011]
[1644672266649,0.20091437,42345.0,42340.0,0.00049197]
[1644672266846,0.20101437,42345.0,42340.0,0.00070208]
[1644672267049,0.20091437,42343.0,42340.0,0.00070208]
[1644672267248,0.20091437,42344.0,42340.0,0.00070208]
[1644672267446,0.0001,42345.0,42340.0,0.00070208]
[1644672267447,0.20091437,42343.0,42340.0,0.00070208]
[1644672267647,0.20091437,42343.0,42340.0,0.00021011]
[1644672267847,0.20091437,42343.0,42340.0,0.00049197]
[1644672268049,0.20101437,42345.0,42340.0,0.00070208]
[1644672268248,0.20091437,42345.0,42340.0,0.00070208]
[1644672268500,0.20101437,42345.0,42340.0,0.00070208]
[1644672268698,0.20091437,42345.0,42340.0,0.00070208]
[1644672268900,0.20091437,42343.0,42340.0,0.00021011]
[1644672269098,0.25998637,42343.0,42340.0,0.00049197]
[1644672269297,0.109072,42343.0,42340.0,0.00070208]
[1644672269499,0.30998637,42343.0,42340.0,0.00070208]
[1644672269700,0.25998637,42343.0,42340.0,0.00070208]
[1644672270100,0.25998637,42343.0,42340.0,0.00021011]
[1644672270298,0.25998637,42343.0,42339.0,0.2659736]
[1644672270299,0.30998637,42343.0,42339.0,0.2659736]
[1644672271200,0.30998637,42343.0,42339.0,0.26548162]
[1644672271400,0.30998637,42343.0,42339.0,0.2659736]
[1644672272454,0.30998637,42343.0,42339.0,0.26548162]
[1644672272651,0.30998637,42343.0,42339.0,0.2659736]
[1644672272851,0.30998637,42343.0,42339.0,0.23929045]
[1644672273052,0.20091437,42342.0,42339.0,0.23929045]
[1644672273656,0.20091437,42342.0,42339.0,0.23879847]
[1644672278205,0.25091437,42343.0,42339.0,0.23879847]
[1644672279006,0.20091437,42342.0,42339.0,0.23879847]
[1644672279207,0.25091437,42343.0,42339.0,0.23879847]
[1644672279850,0.25091437,42343.0,42339.0,0.23929045]
[1644672280953,0.25091437,42343.0,42339.0,0.23879847]
[1644672281147,0.25091437,42343.0,42339.0,0.23929045]
[1644672282050,0.25091437,42343.0,42339.0,0.23879847]
[1644672282351,0.25091437,42343.0,42339.0,0.23929045]
[1644672283504,0.20091437,42342.0,42339.0,0.23929045]
[1644672284504,0.20091437,42342.0,42339.0,0.23879847]
[1644672290357,0.20091437,42341.0,42339.0,0.23879847]
[1644672292503,0.20091437,42340.0,42339.0,0.23879847]
[1644672301608,0.16078696,42340.0,42339.0,0.23879847]
[1644672301806,0.2511726,42343.0,42339.0,0.23879847]
[1644672302008,0.2512726,42347.0,42340.0,0.05]
[1644672302273,0.0001,42346.0,42340.0,0.30077942]
[1644672302454,0.0001,42348.0,42341.0,0.25056931]
[1644672302655,0.0001,42348.0,42347.0,0.1892784]
[1644672302656,0.2512726,42348.0,42347.0,0.1892784]
[1644672302857,0.2512726,42348.0,42347.0,0.15966063]
[1644672303459,0.0001,42348.0,42347.0,0.15966063]
[1644672303857,0.0001,42349.0,42347.0,0.15966063]
[1644672304058,0.2462726,42350.0,42347.0,0.15966063]
[1644672304257,0.00025977,42352.0,42347.0,0.15966063]
[1644672304558,0.00025977,42351.0,42347.0,0.15966063]
[1644672304761,0.00025977,42352.0,42347.0,0.15966063]
[1644672304958,0.38305501,42353.0,42347.0,0.15966063]
[1644672305158,0.00025977,42352.0,42347.0,0.15966063]
[1644672305359,0.30209371,42353.0,42347.0,0.15966063]
[1644672305560,0.00025977,42352.0,42347.0,0.15966063]
[1644672305758,0.00045469,42353.0,42347.0,0.15966063]
[1644672306006,0.00025977,42352.0,42347.0,0.15806695]
[1644672306209,0.00025977,42353.0,42347.0,0.15806695]
[1644672306409,0.00045469,42353.0,42347.0,0.15806695]
[1644672306609,0.00071446,42353.0,42347.0,0.15708695]
[1644672306810,0.00071446,42353.0,42347.0,0.15620695]
[1644672307010,0.00045469,42353.0,42347.0,0.15620695]
[1644672307314,0.00025977,42354.0,42347.0,0.15620695]
[1644672307509,0.0004547,42353.0,42347.0,0.15620695]
[1644672308512,0.00025977,42356.0,42347.0,0.15620695]
[1644672308711,0.00071697,42353.0,42347.0,0.15620695]
[1644672308912,0.0004572,42353.0,42347.0,0.15620695]
[1644672309613,0.00035977,42356.0,42347.0,0.15620695]
[1644672309856,0.0004572,42353.0,42347.0,0.15620695]
[1644672310959,0.00025977,42354.0,42347.0,0.15620695]